bitfinex-derivatives/quotes_BTCF0:USTF0_20251111
["timestamp","ask_amount","ask_price","bid_price","bid_amount"]
[1762873778670,0.53121822,104210.0,104200.0,0.05866092]
[1762873779169,0.56281822,104210.0,104200.0,0.05866092]
[1762873779963,0.56281822,104210.0,104200.0,0.06166092]
[1762873780669,0.56285822,104210.0,104200.0,0.15764482]
[1762873780866,0.56285822,104210.0,104200.0,0.06166092]
[1762873781170,0.56285822,104210.0,104200.0,0.15964482]
[1762873781373,0.19165822,104210.0,104200.0,0.15964482]
[1762873781561,0.56289822,104210.0,104200.0,0.15964482]
[1762873782065,0.56289822,104210.0,104200.0,0.06366092]
[1762873782269,0.56289822,104210.0,104200.0,0.15964482]
[1762873782571,0.55789822,104210.0,104200.0,0.15964482]
[1762873782769,0.55789822,104210.0,104200.0,0.06366092]
[1762873782973,0.55789822,104210.0,104200.0,0.15964482]
[1762873783162,0.55789822,104210.0,104200.0,0.06366092]
[1762873783361,0.55789822,104210.0,104200.0,0.15964482]
[1762873784369,0.55789822,104210.0,104200.0,0.06366092]
[1762873784769,0.55789822,104210.0,104200.0,0.15964482]
[1762873785167,0.55789822,104210.0,104200.0,0.06366092]
[1762873786467,0.55789822,104210.0,104200.0,0.15964482]
[1762873786975,0.55789822,104210.0,104200.0,0.06366092]
[1762873787471,0.55789822,104210.0,104200.0,0.15964482]
[1762873787666,0.18665822,104210.0,104200.0,0.15964482]
[1762873787860,0.00014384,104220.0,104210.0,0.1390246]
[1762873788174,0.00014384,104220.0,104210.0,0.04524803]
[1762873788175,0.28258881,104220.0,104210.0,0.04524803]
[1762873788969,0.28258881,104220.0,104210.0,0.04724803]
[1762873789372,0.28258881,104220.0,104210.0,0.14322263]
[1762873790174,0.00014384,104220.0,104210.0,0.14322263]
[1762873790360,0.94084,104270.0,104240.0,0.05924]
[1762873790564,0.37128,104260.0,104250.0,0.00219803]
[1762873790776,0.14326737,104260.0,104250.0,0.14371583]
[1762873791074,0.19156497,104280.0,104260.0,0.01366]
[1762873791372,0.37128,104270.0,104260.0,0.01600187]
[1762873791568,0.37428,104270.0,104260.0,0.01600187]
[1762873791868,0.56884497,104270.0,104260.0,0.06158187]
[1762873792373,0.56284497,104270.0,104260.0,0.06158187]
[1762873792564,0.56284497,104270.0,104260.0,0.06358187]
[1762873792961,1.10766484,104270.0,104260.0,0.00214384]
[1762873793168,1.10766484,104270.0,104240.0,0.01366]
[1762873793169,1.12876569,104270.0,104240.0,0.01366]
[1762873793370,0.19156497,104250.0,104240.0,0.01585803]
[1762873793674,0.56284497,104250.0,104240.0,0.01585803]
[1762873794874,0.56284497,104250.0,104240.0,0.06143803]
[1762873794875,0.19156497,104250.0,104240.0,0.06143803]
[1762873795071,0.00014384,104260.0,104250.0,0.04558]
[1762873795276,0.19170881,104260.0,104250.0,0.14371583]
[1762873795469,0.37030881,104260.0,104250.0,0.14371583]
[1762873795871,0.00014384,104260.0,104250.0,0.14371583]
[1762873796368,0.19170881,104260.0,104250.0,0.14371583]
[1762873796577,0.19170881,104260.0,104250.0,0.14471583]
[1762873797666,0.19170881,104260.0,104250.0,0.04877803]
[1762873797868,0.19170881,104260.0,104250.0,0.00319803]
[1762873798069,0.3355991,104260.0,104250.0,0.00319803]
[1762873798369,0.35677101,104260.0,104250.0,0.00319803]
[1762873800270,0.35677101,104260.0,104250.0,0.001]
[1762873800670,0.99969865,104260.0,104230.0,0.00014384]
[1762873800875,0.28157581,104240.0,104230.0,0.00234187]
[1762873801072,0.30274772,104240.0,104230.0,0.00234187]
[1762873801271,0.16600666,104240.0,104230.0,0.04585187]
[1762873801466,0.02117191,104240.0,104230.0,0.14180807]
[1762873801665,0.28171965,104260.0,104250.0,0.0225]
[1762873801666,0.00014384,104260.0,104250.0,0.0225]
[1762873801876,0.67419425,104260.0,104250.0,0.02469803]
[1762873802179,0.67519425,104260.0,104250.0,0.02469803]
[1762873802775,0.67519425,104260.0,104250.0,0.04570803]
[1762873802974,0.39361844,104260.0,104250.0,0.14164583]
[1762873803179,0.67519425,104260.0,104250.0,0.04570803]
[1762873803480,0.67519425,104260.0,104250.0,0.14164583]
[1762873803676,0.39361844,104260.0,104250.0,0.04570803]
[1762873803871,0.67519425,104260.0,104250.0,0.04570803]
[1762873804067,0.65215497,104260.0,104250.0,0.04570803]
[1762873804272,0.65315497,104260.0,104250.0,0.04570803]
[1762873804968,0.65315497,104260.0,104250.0,0.00219803]
[1762873805176,0.79616672,104260.0,104230.0,0.00014384]
[1762873805377,0.28157581,104240.0,104230.0,0.02484187]
[1762873805580,0.67401041,104240.0,104230.0,0.02484187]
[1762873805972,0.3924346,104240.0,104230.0,0.02484187]
[1762873806183,0.67401041,104240.0,104230.0,0.02484187]
[1762873806474,0.67401041,104240.0,104230.0,0.04685187]
[1762873806678,0.67401041,104240.0,104230.0,0.14380807]
[1762873806679,0.3924346,104240.0,104230.0,0.14380807]
[1762873806877,0.00014384,104250.0,104240.0,0.05745]
[1762873807181,0.00014384,104250.0,104240.0,0.05964803]
[1762873807377,0.00014384,104250.0,104240.0,0.15559503]
[1762873809179,0.00014384,104250.0,104240.0,0.05964803]
[1762873809380,0.28171965,104250.0,104240.0,0.05964803]
[1762873810385,0.28171965,104250.0,104240.0,0.06264803]
[1762873810782,0.28171965,104250.0,104240.0,0.06464803]
[1762873811080,0.302798,104250.0,104240.0,0.02113803]
[1762873811585,0.302798,104250.0,104240.0,0.16059503]
[1762873811983,0.27975726,104250.0,104240.0,0.16059503]
[1762873812287,0.27975726,104250.0,104240.0,0.15859503]
[1762873812486,0.65277581,104260.0,104240.0,0.15859503]
[1762873812989,0.37134384,104260.0,104250.0,0.1394478]
[1762873813191,0.37134384,104260.0,104250.0,0.04570803]
[1762873813388,0.37134384,104260.0,104250.0,0.14164583]
[1762873814187,0.00014384,104260.0,104250.0,0.38144583]
[1762873814393,8.15e-06,104260.0,104250.0,0.38144583]
[1762873815081,8.15e-06,104260.0,104250.0,0.14164583]
[1762873815277,8.15e-06,104260.0,104250.0,0.38244583]
[1762873815682,8.15e-06,104260.0,104250.0,0.14264583]
[1762873815883,0.00800815,104260.0,104250.0,0.14264583]
[1762873816082,0.01700815,104260.0,104250.0,0.14364583]
[1762873816485,0.65277581,104280.0,104270.0,0.04351]
[1762873816690,0.65277581,104280.0,104270.0,0.00219803]
[1762873817087,1.19706597,104280.0,104250.0,0.002]
[1762873817279,0.56685283,104280.0,104250.0,0.00419803]
[1762873817484,0.28157581,104260.0,104250.0,0.00434187]
[1762873817686,0.65273581,104260.0,104250.0,0.00434187]
[1762873817993,0.65273581,104260.0,104250.0,0.02684187]
[1762873818491,0.65273581,104260.0,104250.0,0.00334187]
[1762873818686,0.65273581,104260.0,104250.0,0.00234187]
[1762873819396,0.65273581,104260.0,104250.0,0.04585187]
[1762873819588,0.66773581,104260.0,104250.0,0.04785187]
[1762873819996,0.66073581,104260.0,104250.0,0.04685187]
[1762873820294,0.008,104260.0,104250.0,0.14478967]
[1762873820483,0.00014384,104280.0,104270.0,0.045]
[1762873820689,0.00014384,104280.0,104270.0,0.04719803]
[1762873821089,0.28171965,104280.0,104270.0,0.04719803]
[1762873822300,0.28171965,104280.0,104270.0,0.00219803]
[1762873822687,0.68171965,104280.0,104250.0,0.00314384]
[1762873822891,0.28157581,104260.0,104250.0,0.00534187]
[1762873823193,0.28157581,104260.0,104250.0,0.00234187]
[1762873824201,0.30262028,104260.0,104250.0,0.00234187]
[1762873824398,0.02104447,104260.0,104250.0,0.05106187]
[1762873824593,0.02104447,104260.0,104250.0,0.14699967]
[1762873824901,0.65269581,104270.0,104260.0,0.01294]
[1762873825102,0.67374292,104270.0,104260.0,0.01513803]
[1762873825997,0.67374292,104270.0,104260.0,0.00219803]
[1762873826588,0.67374292,104270.0,104260.0,0.01513803]
[1762873826792,0.67374292,104270.0,104260.0,0.01713803]
[1762873826992,0.67374292,104270.0,104260.0,0.01913803]
[1762873828103,0.67374292,104270.0,104260.0,0.16078673]
[1762873828295,0.63918722,104270.0,104260.0,0.06485803]
[1762873828801,0.63918722,104270.0,104260.0,0.00619803]
[1762873831104,0.7830156,104270.0,104260.0,0.00619803]
[1762873831292,0.7830156,104270.0,104260.0,0.01913803]
[1762873832500,0.7830156,104270.0,104260.0,0.01713803]
[1762873832908,0.51494838,104270.0,104260.0,0.01713803]
[1762873833101,0.65269581,104270.0,104260.0,0.01713803]
[1762873833297,0.65269581,104270.0,104260.0,0.00619803]
[1762873833606,0.79620875,104270.0,104260.0,0.00619803]
[1762873833804,1.19620875,104270.0,104250.0,0.00014384]
[1762873834103,0.28157581,104260.0,104220.0,0.05938]
[1762873834403,0.28157581,104230.0,104220.0,0.15754353]
[1762873834608,0.61813021,104230.0,104220.0,0.06157803]
[1762873835000,0.61813021,104230.0,104220.0,0.15754353]
[1762873835308,0.37112,104230.0,104220.0,0.15754353]
[1762873835701,0.37112,104230.0,104220.0,0.06157803]
[1762873836109,0.65269581,104230.0,104220.0,0.06557803]
[1762873836611,0.65269581,104230.0,104220.0,0.06957803]
[1762873837807,0.65269581,104230.0,104220.0,0.01019803]
[1762873838506,0.65269581,104230.0,104220.0,0.00619803]
[1762873838700,0.65269581,104230.0,104220.0,0.00719803]
[1762873839302,0.65269581,104230.0,104220.0,0.02013803]
[1762873839502,0.65269581,104230.0,104220.0,0.01713803]
[1762873839797,0.65273581,104230.0,104220.0,0.01913803]
[1762873840197,0.65273581,104230.0,104220.0,0.06485803]
[1762873840402,0.30229977,104230.0,104220.0,0.01913803]
[1762873840707,1.21767489,104230.0,104220.0,0.004]
[1762873840898,0.81767489,104230.0,104220.0,0.00619803]
[1762873842109,0.81767489,104230.0,104220.0,0.00519803]
[1762873842503,0.81767489,104230.0,104220.0,0.002]
[1762873843106,1.21767489,104230.0,104200.0,0.00010289]
[1762873843307,0.28157581,104210.0,104160.0,0.01294]
[1762873843511,0.28157581,104170.0,104160.0,0.06085803]
[1762873843708,0.65277581,104170.0,104160.0,1.56085803]
[1762873844309,0.65285306,104170.0,104160.0,1.56085803]
[1762873845506,0.65285306,104170.0,104160.0,0.00219803]
[1762873846010,0.65285306,104170.0,104160.0,0.00419803]
[1762873846011,0.79608632,104170.0,104160.0,0.00419803]
[1762873846310,0.79608632,104170.0,104160.0,0.04035803]
[1762873846809,0.79612632,104170.0,104160.0,0.06285803]
[1762873847214,0.65289306,104170.0,104160.0,0.15887873]
[1762873847406,0.28165306,104170.0,104160.0,0.16187873]
[1762873847602,7.725e-05,104170.0,104160.0,0.16187873]
[1762873847803,0.00014384,104180.0,104170.0,0.1417315]
[1762873848011,0.00014384,104180.0,104170.0,0.14392953]
[1762873848612,0.00014384,104180.0,104170.0,0.38392953]
[1762873848808,0.28157581,104200.0,104190.0,0.04572]
[1762873849009,0.65285581,104200.0,104190.0,0.04791803]
[1762873851313,0.65285581,104200.0,104190.0,0.14391113]
[1762873851616,0.65285581,104200.0,104190.0,0.04791803]
[1762873852709,0.00014384,104210.0,104200.0,0.05936]
[1762873852912,0.00014384,104210.0,104200.0,0.15754193]
[1762873853312,0.00014384,104210.0,104200.0,0.06155803]
[1762873853512,0.28171965,104210.0,104200.0,0.06155803]
[1762873853913,0.28271965,104210.0,104200.0,0.06155803]
[1762873854123,0.28371965,104210.0,104200.0,0.06155803]
[1762873854712,0.28371965,104210.0,104200.0,0.15754193]
[1762873854921,0.00214384,104210.0,104200.0,0.15754193]
[1762873855113,0.00114384,104210.0,104200.0,0.15754193]
[1762873855314,0.00214384,104210.0,104200.0,0.15754193]
[1762873855520,0.37091025,104230.0,104220.0,0.05812]
[1762873855723,0.37091025,104230.0,104220.0,0.15628353]
[1762873855914,0.37091025,104230.0,104220.0,0.06031803]
[1762873856616,0.37091025,104230.0,104220.0,0.06231803]
[1762873857222,0.37091025,104230.0,104220.0,0.06331803]
[1762873857424,0.65248606,104230.0,104220.0,0.06331803]
[1762873859732,0.37091025,104230.0,104220.0,0.16328353]
[1762873859927,0.65248606,104230.0,104220.0,0.06731803]
[1762873860235,0.65248606,104230.0,104220.0,0.16328353]
[1762873860525,0.37091025,104230.0,104220.0,0.06731803]
[1762873861032,0.00023025,104230.0,104220.0,0.06731803]
[1762873861224,0.19216317,104230.0,104220.0,0.06731803]
[1762873863124,0.19216317,104230.0,104220.0,0.02217803]
[1762873863324,0.19216317,104230.0,104220.0,0.02260803]
[1762873863529,0.19216317,104230.0,104220.0,0.06552803]
[1762873864431,0.19216317,104230.0,104220.0,0.06152803]
[1762873864628,0.19216317,104230.0,104220.0,0.06452803]
[1762873865028,0.19216317,104230.0,104220.0,0.02160803]
[1762873865228,0.19216317,104230.0,104220.0,0.02060803]
[1762873867837,0.19216317,104230.0,104220.0,0.005]
[1762873867838,0.35570713,104230.0,104220.0,0.005]
[1762873868237,0.33529299,104230.0,104220.0,0.06352803]
[1762873868833,0.19216317,104230.0,104220.0,0.06352803]
[1762873869335,0.19216317,104230.0,104220.0,0.15649353]
[1762873869538,0.00023025,104230.0,104220.0,0.15849353]
[1762873870038,0.04305025,104230.0,104220.0,0.15849353]
[1762873870239,0.04305025,104230.0,104220.0,0.15949353]
[1762873871036,0.04305025,104230.0,104220.0,0.06252803]
[1762873871338,0.04305025,104230.0,104220.0,0.16149353]
[1762873872243,0.00014384,104240.0,104230.0,0.1388763]
[1762873872446,0.00014384,104240.0,104230.0,0.14107433]
[1762873872635,0.19193292,104260.0,104250.0,0.04292]
[1762873872834,0.0099,104270.0,104260.0,0.05633]
[1762873873041,0.20183292,104270.0,104260.0,0.05852803]
[1762873873240,0.21173292,104270.0,104260.0,0.05852803]
[1762873873635,0.21173292,104270.0,104260.0,0.15445673]
[1762873873832,0.24463292,104280.0,104270.0,0.1388395]
[1762873874145,0.21173292,104290.0,104280.0,0.05633]
[1762873874346,0.0198,104290.0,104280.0,0.05852803]
[1762873874540,0.21173292,104290.0,104280.0,0.05852803]
[1762873875942,0.0198,104290.0,104280.0,0.05852803]
[1762873876144,0.21173292,104290.0,104280.0,0.05852803]
[1762873876343,0.20183292,104290.0,104280.0,0.06052803]
[1762873876739,0.19193292,104300.0,104290.0,0.04292]
[1762873877044,0.21173292,104310.0,104300.0,0.05633]
[1762873877234,0.21173292,104310.0,104300.0,0.05852803]
[1762873877532,0.21173292,104310.0,104300.0,0.00219803]
[1762873877733,0.21173292,104310.0,104300.0,0.03746803]
[1762873877946,0.21173292,104310.0,104300.0,0.05852803]
[1762873878147,0.21173292,104310.0,104300.0,0.01560803]
[1762873878446,0.21173292,104310.0,104300.0,0.00219803]
[1762873878833,0.58281292,104310.0,104300.0,0.00219803]
[1762873879044,0.0198,104300.0,104290.0,0.00314384]
[1762873879249,0.01812,104270.0,104260.0,0.05633]
[1762873879438,0.19193292,104280.0,104260.0,0.15445673]
[1762873879638,0.19193292,104280.0,104270.0,0.04341]
[1762873879838,0.19193292,104280.0,104270.0,0.04560803]
[1762873880145,0.57945292,104290.0,104280.0,0.057]
[1762873880338,0.57959676,104290.0,104280.0,0.05919803]
[1762873881133,0.57959676,104290.0,104280.0,0.01578803]
[1762873881343,0.57959676,104290.0,104280.0,0.00419803]
[1762873881849,0.01644,104270.0,104260.0,0.01755384]
[1762873882146,0.20837292,104270.0,104260.0,0.06316187]
[1762873882940,0.20837292,104270.0,104260.0,0.05916187]
[1762873883135,0.19815292,104270.0,104260.0,0.05916187]
[1762873883342,0.20437292,104270.0,104260.0,0.05916187]
[1762873883749,0.20437292,104270.0,104260.0,0.01575187]
[1762873883946,0.20437292,104270.0,104260.0,0.00434187]
[1762873884149,0.57541292,104270.0,104260.0,0.00214384]
[1762873884351,0.71874185,104270.0,104260.0,0.00414384]
[1762873884649,0.71874185,104270.0,104240.0,0.01350451]
[1762873884650,0.00416,104250.0,104240.0,0.01350451]
[1762873884854,0.56709292,104250.0,104240.0,0.01570254]
[1762873885043,0.56709292,104250.0,104240.0,0.00229254]
[1762873885243,0.90206118,104250.0,104240.0,0.00229254]
[1762873885443,0.00416,104230.0,104220.0,0.01341]
[1762873885747,0.19609292,104230.0,104220.0,0.01560803]
[1762873885948,0.19609292,104230.0,104220.0,0.05901803]
[1762873886249,0.19623676,104240.0,104230.0,0.04341]
[1762873886444,0.19623676,104240.0,104230.0,0.04560803]
[1762873886650,0.19633127,104240.0,104230.0,0.00219803]
[1762873887041,0.38826419,104240.0,104230.0,0.00219803]
[1762873887646,0.19633127,104240.0,104230.0,0.04560803]
[1762873888152,0.56937127,104240.0,104230.0,0.04560803]
[1762873888354,0.57137127,104240.0,104230.0,0.04560803]
[1762873888554,0.57137127,104240.0,104230.0,0.14156433]
[1762873888755,0.57137127,104240.0,104230.0,0.04560803]
[1762873889452,0.37527835,104240.0,104230.0,0.14156433]
[1762873889647,0.00423835,104240.0,104230.0,0.14156433]
[1762873890354,0.20457292,104260.0,104250.0,0.04341]
[1762873890556,0.20457292,104260.0,104250.0,0.04560803]
[1762873890744,0.20457292,104260.0,104250.0,0.00219803]
[1762873891646,0.20457292,104260.0,104250.0,0.00419803]
[1762873893047,0.20457292,104260.0,104250.0,0.004]
[1762873893243,0.20457292,104260.0,104240.0,0.00014384]
[1762873893455,0.57191292,104250.0,104240.0,0.00234187]
[1762873893650,0.57191292,104250.0,104240.0,0.01593187]
[1762873894051,0.57191292,104250.0,104240.0,0.03737187]
[1762873894251,0.37998,104250.0,104240.0,0.03737187]
[1762873894555,0.57191292,104250.0,104240.0,0.04037187]
[1762873894759,0.57191292,104250.0,104240.0,0.04337187]
[1762873895357,0.00014384,104270.0,104240.0,0.06534187]
[1762873895547,0.56791292,104260.0,104250.0,0.04341]
[1762873895748,0.34031866,104270.0,104260.0,0.057]
[1762873895952,0.19701676,104270.0,104260.0,0.05919803]
[1762873896149,0.00261384,104270.0,104260.0,0.05919803]
[1762873896348,0.19454676,104270.0,104260.0,0.15512673]
[1762873896655,0.19207676,104270.0,104260.0,0.15512673]
[1762873896960,0.00014384,104270.0,104260.0,0.15512673]
[1762873897253,0.00014384,104270.0,104260.0,0.15612673]
[1762873897559,4.933e-05,104270.0,104260.0,0.58781965]
[1762873897760,4.933e-05,104270.0,104260.0,0.35205965]
[1762873897963,4.933e-05,104270.0,104260.0,0.39988673]
[1762873898162,4.933e-05,104270.0,104260.0,0.16012673]
[1762873898550,4.933e-05,104270.0,104260.0,0.39988673]
[1762873899066,4.933e-05,104270.0,104260.0,0.39688673]
[1762873899245,0.00304933,104270.0,104260.0,0.39688673]
[1762873899651,0.00504933,104270.0,104260.0,0.15512673]
[1762873899854,0.20192225,104270.0,104260.0,0.05919803]
[1762873900048,0.19945225,104270.0,104260.0,0.15512673]
[1762873900351,0.19945225,104270.0,104260.0,0.05919803]
[1762873900550,0.19945225,104270.0,104260.0,0.15512673]
[1762873900761,0.00504933,104270.0,104260.0,0.05919803]
[1762873901058,0.19892225,104270.0,104260.0,0.05919803]
[1762873901257,0.20092225,104270.0,104260.0,0.05919803]
[1762873901652,0.22129855,104270.0,104260.0,0.05919803]
[1762873901855,0.22129855,104270.0,104260.0,0.00219803]
[1762873902459,0.22129855,104270.0,104260.0,0.01578803]
[1762873902659,0.22129855,104270.0,104260.0,0.05919803]
[1762873902846,0.22129855,104270.0,104260.0,0.15512673]
[1762873903052,0.00404933,104270.0,104260.0,0.15512673]
[1762873903650,0.00404933,104270.0,104260.0,0.05919803]
[1762873903847,0.20092225,104270.0,104260.0,0.05919803]
[1762873904253,0.20092225,104270.0,104260.0,0.03722803]
[1762873904650,0.20092225,104270.0,104260.0,0.00219803]
[1762873904859,0.22130039,104270.0,104260.0,0.00219803]
[1762873905263,0.20092225,104270.0,104260.0,0.00219803]
[1762873905471,0.34413039,104270.0,104260.0,0.00219803]
[1762873905661,0.36450849,104270.0,104260.0,0.00219803]
[1762873907260,0.02936743,104270.0,104260.0,0.05919803]
[1762873907458,0.20092225,104270.0,104260.0,0.05919803]
[1762873907659,0.00404933,104270.0,104260.0,0.15512673]
[1762873909369,0.19845292,104300.0,104290.0,0.04341]
[1762873909557,0.19845292,104300.0,104290.0,0.04560803]
[1762873910063,0.20497292,104300.0,104290.0,0.04560803]
[1762873910464,0.2253655,104300.0,104290.0,0.04660803]
[1762873910772,0.2253655,104300.0,104290.0,0.04860803]
[1762873911357,0.03343258,104300.0,104290.0,0.04960803]
[1762873911559,0.03343258,104300.0,104290.0,0.00619803]
[1762873911560,0.2253655,104300.0,104290.0,0.00619803]
[1762873912559,0.20497292,104300.0,104290.0,0.004]
[1762873912771,0.22535556,104300.0,104290.0,0.004]
[1762873913069,0.01304,104290.0,104280.0,0.00014384]
[1762873913270,0.57593292,104290.0,104280.0,0.00234187]
[1762873914270,0.00476,104260.0,104250.0,0.02264]
[1762873914471,0.19669292,104260.0,104250.0,0.04614803]
[1762873915274,0.56765292,104270.0,104260.0,0.05683]
[1762873915465,0.56765292,104270.0,104260.0,0.05902803]
[1762873916067,0.37096,104270.0,104260.0,0.15495673]
[1762873916771,0.37096,104270.0,104260.0,0.15695673]
[1762873916968,0.37096,104270.0,104260.0,0.06102803]
[1762873917165,0.37096,104270.0,104260.0,0.15695673]
[1762873918069,0.37096,104270.0,104260.0,0.15895673]
[1762873918371,0.37096,104270.0,104260.0,0.06302803]
[1762873918565,0.19207676,104280.0,104270.0,0.1398695]
[1762873918870,0.00014384,104280.0,104270.0,0.14206753]
[1762873919466,0.00014384,104280.0,104270.0,0.04614803]
[1762873919863,0.00014384,104280.0,104270.0,0.14206753]
[1762873920063,0.00014384,104280.0,104270.0,0.14306753]
[1762873920263,0.00014384,104280.0,104270.0,0.14406753]
[1762873920858,0.19669292,104300.0,104290.0,0.02264]
[1762873921064,0.56765292,104300.0,104290.0,0.00219803]
[1762873921965,0.37572,104300.0,104290.0,0.00219803]
[1762873922167,0.56765292,104300.0,104290.0,0.00219803]
[1762873922975,0.65696068,104300.0,104290.0,0.00219803]
[1762873923268,0.37334,104300.0,104290.0,0.14367913]
[1762873923471,0.28124068,104310.0,104300.0,0.0575]
[1762873923472,0.37572,104310.0,104300.0,0.0575]
[1762873923671,0.39602321,104310.0,104300.0,0.15558993]
[1762873924063,0.37096,104310.0,104300.0,0.15558993]
[1762873924269,0.28600068,104330.0,104320.0,0.0575]
[1762873924566,0.00476,104340.0,104330.0,0.04469]
[1762873924870,0.65692068,104340.0,104330.0,0.04688803]
[1762873925066,0.67721587,104340.0,104330.0,0.00219803]
[1762873925370,0.00476,104320.0,104310.0,0.00014384]
[1762873925572,0.28600068,104320.0,104310.0,0.04703187]
[1762873926373,0.65692068,104320.0,104310.0,0.04703187]
[1762873926560,0.65692068,104320.0,104310.0,0.00234187]
[1762873927469,0.67720464,104320.0,104310.0,0.00014384]
[1762873927774,0.00476,104310.0,104300.0,0.002]
[1762873927981,0.30628464,104310.0,104300.0,0.00219803]
[1762873928867,0.30728464,104310.0,104300.0,0.00219803]
[1762873929068,0.02604396,104310.0,104300.0,0.00219803]
[1762873929262,0.30728464,104310.0,104300.0,0.00219803]
[1762873930674,0.00476,104300.0,104290.0,0.00014384]
[1762873930981,0.82154519,104300.0,104290.0,0.00014384]
[1762873931275,0.67716015,104300.0,104290.0,0.00234187]
[1762873931877,0.67716015,104300.0,104290.0,0.00334187]
[1762873932073,0.67716015,104300.0,104290.0,0.00114384]
[1762873932275,0.00248,104290.0,104280.0,0.09143]
[1762873932481,0.28372068,104290.0,104280.0,0.13831803]
[1762873933079,0.37336,104290.0,104280.0,0.23422833]
[1762873933272,0.37088,104290.0,104280.0,0.23422833]
[1762873933671,0.37088,104290.0,104280.0,0.23522833]
[1762873934472,0.33633472,104290.0,104280.0,0.23522833]
[1762873935083,0.33879472,104290.0,104250.0,0.18171208]
[1762873935378,0.00999999,104220.0,104210.0,0.05507883]
[1762873935578,0.00999999,104170.0,104160.0,0.0575]
[1762873935780,0.0036031,104190.0,104160.0,0.20071878]
[1762873935986,0.05136267,104220.0,104190.0,0.0575]
[1762873936171,0.03138223,104220.0,104210.0,0.00069878]
[1762873936370,0.17579046,104220.0,104210.0,0.00069878]
[1762873936577,0.03138223,104220.0,104210.0,0.06602878]
[1762873936772,0.03538223,104220.0,104210.0,0.06602878]
[1762873936976,0.03549021,104220.0,104210.0,0.06602878]
[1762873937180,0.03549021,104220.0,104210.0,0.26598878]
[1762873937383,0.31673089,104220.0,104210.0,0.02133878]
[1762873937584,0.31673089,104220.0,104210.0,0.05285878]
[1762873937777,0.31673089,104220.0,104210.0,0.02133878]
[1762873937980,0.31673089,104220.0,104210.0,0.00069878]
[1762873938179,0.31673089,104220.0,104190.0,0.01295384]
[1762873938180,0.46103803,104220.0,104190.0,0.01295384]
[1762873938484,0.28124068,104200.0,104190.0,0.00014384]
[1762873938687,0.3125493,104200.0,104190.0,0.00014384]
[1762873938881,0.45734529,104200.0,104190.0,0.00014384]
[1762873939590,0.45734529,104200.0,104190.0,0.01395384]
[1762873939979,0.45734529,104200.0,104190.0,0.01595384]
[1762873940785,0.45734529,104200.0,104180.0,0.0787]
[1762873940980,0.00010798,104190.0,104180.0,0.0787]
[1762873941180,0.28354669,104190.0,104180.0,1.5787]
[1762873941488,0.31258705,104190.0,104180.0,1.5787]
[1762873941884,0.45567837,104190.0,104180.0,0.0787]
[1762873942084,0.45557039,104190.0,104170.0,0.00014384]
[1762873942285,0.28134866,104180.0,104170.0,0.02078384]
[1762873942584,0.31258705,104180.0,104170.0,0.00014384]
[1762873943381,0.45651308,104180.0,104170.0,0.00014384]
[1762873944383,0.1752724,104180.0,104170.0,0.02078384]
[1762873944584,0.45651308,104180.0,104170.0,0.02078384]
[1762873945089,0.31258705,104180.0,104170.0,0.04387384]
[1762873945291,0.02403894,104180.0,104170.0,0.07698384]
[1762873945498,0.02403894,104180.0,104170.0,0.47798384]
[1762873945684,0.00014384,104200.0,104190.0,0.0562]
[1762873945877,0.00234187,104200.0,104190.0,0.07684]
[1762873946681,0.28358255,104200.0,104190.0,0.07684]
[1762873947891,0.00014384,104200.0,104190.0,0.07684]
[1762873948094,0.00234187,104200.0,104190.0,0.07684]
[1762873948283,0.28358255,104200.0,104190.0,0.07684]
[1762873948994,0.00234187,104200.0,104190.0,0.07784]
[1762873949587,0.28358255,104200.0,104190.0,0.07784]
[1762873950984,0.00234187,104200.0,104190.0,0.1738329]
[1762873951185,0.00234187,104200.0,104160.0,0.02142]
[1762873951186,0.0249,104190.0,104160.0,0.02142]
[1762873951483,0.28343871,104170.0,104120.0,0.01281]
[1762873951686,0.28343871,104170.0,104120.0,1.56901]
[1762873951687,0.0527535,104170.0,104120.0,1.56901]
[1762873951887,0.0527535,104170.0,104140.0,0.07671]
[1762873951888,0.28124068,104150.0,104140.0,0.07671]
[1762873952090,0.28343871,104150.0,104140.0,0.07671]
[1762873952291,0.28343871,104150.0,104140.0,0.02051]
[1762873952590,0.28343871,104150.0,104130.0,0.40254384]
[1762873952591,0.42755473,104150.0,104130.0,0.40254384]
[1762873952791,0.2813082,104140.0,104130.0,0.00014384]
[1762873952987,0.28350623,104140.0,104130.0,0.00014384]
[1762873953182,0.37954523,104140.0,104130.0,0.00014384]
[1762873953794,0.09830455,104140.0,104130.0,0.00014384]
[1762873953982,0.37954523,104140.0,104130.0,0.00014384]
[1762873954486,0.38254523,104140.0,104130.0,0.00014384]
[1762873955386,0.38454523,104140.0,104130.0,0.00014384]
[1762873956193,0.4351007,104140.0,104130.0,0.00014384]
[1762873956696,0.38454523,104140.0,104130.0,0.00014384]
[1762873957199,0.4351007,104140.0,104130.0,0.00014384]
[1762873957398,0.4670559,104140.0,104130.0,0.00014384]
[1762873959595,0.03143338,104140.0,104130.0,0.45634384]
[1762873959794,0.00014384,104160.0,104150.0,0.0562]
[1762873959986,0.09616444,104160.0,104150.0,0.4578]
[1762873960186,0.37960315,104160.0,104150.0,0.4578]
[1762873960393,0.28358255,104160.0,104150.0,0.4578]
[1762873961094,0.28358255,104160.0,104150.0,0.005]
[1762873961300,0.28358255,104160.0,104150.0,0.40664]
[1762873961795,0.28358255,104160.0,104150.0,0.0612]
[1762873962000,0.28358255,104160.0,104150.0,0.40716]
[1762873962297,0.33413802,104160.0,104150.0,0.40716]
[1762873963195,0.33413802,104160.0,104150.0,0.005]
[1762873964306,0.35206611,104160.0,104150.0,0.005]
[1762873965202,0.28358255,104160.0,104150.0,0.005]
[1762873966304,0.28358255,104160.0,104140.0,0.42171]
[1762873966505,0.28124068,104150.0,104140.0,0.47791]
[1762873966707,0.35149166,104150.0,104140.0,0.47791]
[1762873966910,0.28343871,104150.0,104140.0,0.07671]
[1762873967109,0.28343871,104150.0,104130.0,0.00014384]
[1762873967303,0.34931703,104140.0,104130.0,0.00014384]
[1762873967508,0.28343871,104140.0,104130.0,0.00014384]
[1762873968510,0.28343871,104140.0,104130.0,0.05634384]
[1762873968712,0.35153157,104140.0,104130.0,0.05634384]
[1762873969114,0.35153157,104140.0,104130.0,0.05834384]
[1762873969712,0.44757057,104140.0,104130.0,0.05834384]
[1762873970815,0.44757057,104140.0,104130.0,0.05934384]
[1762873971409,0.44757057,104140.0,104130.0,0.05734384]
[1762873971609,0.47696034,104140.0,104130.0,0.05934384]
[1762873972110,0.47696034,104140.0,104130.0,0.02623384]
[1762873973712,0.47696034,104140.0,104130.0,0.05781384]
[1762873973912,0.38092134,104140.0,104130.0,0.05781384]
[1762873974118,0.47696034,104140.0,104130.0,0.05781384]
[1762873974515,0.0315878,104140.0,104130.0,0.29789384]
[1762873974711,0.05329379,104140.0,104130.0,0.05781384]
[1762873975108,0.08268356,104140.0,104130.0,0.05781384]
[1762873975616,0.36392424,104140.0,104130.0,0.05781384]